fUSD/lending_fUSD_20240718
["ID","MTS","AMOUNT","RATE_DAILY","PERIOD"]
[332532979,1721288114434,-600.34,0.00027945,2]
[332532980,1721288114443,-945.46,0.00027945,2]
[332532981,1721288114452,-6789.46,0.00027945,2]
[332532982,1721288114463,-158.23244573,0.00027945,2]
[332532983,1721288114472,-702.74,0.00027945,2]
[332532984,1721288114483,-1649.03,0.00027945,2]
[332532985,1721288114493,-846.83,0.00027945,2]
[332532986,1721288114502,-1351.16,0.00027945,2]
[332532987,1721288114511,-3838.48,0.00027945,2]
[332532988,1721288114524,-727.83,0.00027945,2]
[332532989,1721288114534,-592.88,0.00027945,2]
[332532990,1721288114543,-1314.69,0.00027945,2]
[332532991,1721288114553,-660.25,0.00027945,2]
[332532992,1721288114563,-690.8,0.00027945,2]
[332532993,1721288114572,-1225.2,0.00027945,2]
[332532994,1721288114582,-758.27,0.00027945,2]
[332532995,1721288114592,-1099.8,0.00027945,2]
[332532996,1721288114601,-815.9,0.00027945,2]
[332532997,1721288114611,-1445.6,0.00027945,2]
[332532998,1721288114621,-1211.24,0.00027945,2]
[332532999,1721288114631,-764.9,0.00027945,2]
[332533000,1721288114640,-1017.79,0.00027945,2]
[332533001,1721288114649,-819.77,0.00027945,2]
[332533002,1721288114659,-508.09,0.00027945,2]
[332533003,1721288114673,-1121.8,0.00027945,2]
[332533004,1721288114683,-4510.49,0.00027945,2]
[332533005,1721288114692,-843.65,0.00027945,2]
[332533006,1721288114702,-548.62,0.00027945,2]
[332533007,1721288114712,-732.51,0.00027945,2]
[332533008,1721288114722,-309.6427668,0.00027945,2]
[332533009,1721288114731,-727.51,0.00027945,2]
[332533010,1721288114741,-699.69,0.00027945,2]
[332533011,1721288114752,-780.84,0.00027945,2]
[332533012,1721288114762,-615.98,0.00027945,2]
[332533013,1721288114774,-985.19,0.00027945,2]
[332533014,1721288114783,-2219.16,0.00027945,2]
[332533015,1721288114793,-661.47,0.00027945,2]
[332533016,1721288114803,-2008.64,0.00027945,2]
[332533017,1721288114812,-707.34,0.00027945,2]
[332533018,1721288114821,-776.84,0.00027945,2]
[332533019,1721288114831,-2197.33,0.00027945,2]
[332533020,1721288114841,-813.45,0.00027945,2]
[332533021,1721288114851,-1222.6,0.00027945,2]
[332533022,1721288114860,-685.95,0.00027945,2]
[332533023,1721288114870,-885.84,0.00027945,2]
[332533024,1721288114879,-589.04,0.00027945,2]
[332533025,1721288114889,-703.44,0.00027945,2]
[332533026,1721288114899,-919.77,0.00027945,2]
[332533027,1721288114909,-2956.08,0.00027945,2]
[332533028,1721288114919,-699.95,0.00027945,2]
[332533029,1721288114928,-565.55443657,0.00027945,2]
[332533030,1721288114939,-758.73,0.00027945,2]
[332533031,1721288114949,-1023.99,0.00027945,2]
[332533032,1721288114959,-6067.08,0.00027945,2]
[332533033,1721288114969,-638.49307373,0.00027945,2]
[332533034,1721288114978,-893.45,0.00027945,2]
[332533035,1721288114989,-1159.85,0.00027945,2]
[332533036,1721288114998,-799.42,0.00027945,2]
[332533037,1721288115009,-3353.04275101,0.00028,2]
[332533038,1721288115020,-621.57209834,0.00028,2]
[332533039,1721288115029,-5018.0,0.00028,7]
[332533040,1721288115039,-1000.0,0.00028,15]
[332533041,1721288115048,-34340.99540815,0.00028,2]
[332533042,1721288115058,-24361.7337928,0.00028,2]
[332533043,1721288115067,-974.27056156,0.00028,2]
[332533044,1721288115077,-360.344099,0.00028,2]
[332533045,1721288115088,-304.34,0.0002806,2]
[332533046,1721288115098,-979.61,0.00028073,2]
[332533047,1721288115107,-177.83528398,0.000281,120]
[332533048,1721288115116,-200.0,0.0002817,30]
[332533049,1721288115127,-159.01,0.0002818,2]
[332533050,1721288115136,-252.0,0.0002819,30]
[332533051,1721288115146,-1518.099999,0.000282,2]
[332533052,1721288115156,-1518.1,0.000282,2]
[332533053,1721288115166,-1518.1,0.000282,2]
[332533054,1721288115175,-1548.97710339,0.00028219,2]
[332533055,1721288115186,-903.68823045,0.00028219,2]
[332533056,1721288115196,-873.78867761,0.00028219,2]
[332533057,1721288115206,-1146.84345846,0.00028219,2]
[332533058,1721288115216,-755.87690798,0.00028219,2]
[332533059,1721288115226,-1117.6852002,0.00028219,2]
[332533060,1721288115236,-1014.53126704,0.00028219,2]
[332533061,1721288115246,-390.80037006,0.00028219,2]
[332533062,1721288115256,-926.90904942,0.00028219,2]
[332533063,1721288115266,-559.73238441,0.00028219,2]
[332533064,1721288115276,-1202.64357288,0.00028219,2]
[332533065,1721288115286,-686.62100859,0.00028219,2]
[332533066,1721288115296,-698.05706992,0.00028219,2]
[332533067,1721288115306,-212.36283055,0.00028219,2]
[332533068,1721288115316,-568.18606527,0.00028219,2]
[332533069,1721288115326,-506.57792656,0.00028219,2]
[332533070,1721288115336,-580.10540648,0.00028219,2]
[332533071,1721288115346,-888.09477394,0.00028219,2]
[332533072,1721288115355,-877.94996302,0.00028219,2]
[332533073,1721288115365,-443.05253266,0.00028219,2]
[332533074,1721288115375,-690.09,0.00028219,2]
[332533075,1721288115385,-887.2002717,0.00028219,2]
[332533076,1721288115394,-512.96405172,0.00028219,2]
[332533077,1721288115404,-481.68722663,0.00028219,2]
[332533078,1721288115414,-918.52480476,0.00028219,2]
[332533079,1721288115424,-1130.32204586,0.00028219,2]
[332533080,1721288115434,-413.79360558,0.00028219,2]
[332533081,1721288115444,-1018.48880325,0.00028219,2]
[332533082,1721288115454,-583.08114358,0.00028219,2]
[332533083,1721288115464,-629.12565694,0.00028219,2]
[332533084,1721288115473,-683.0079105,0.00028219,2]
[332533085,1721288115484,-1037.18846962,0.00028219,2]
[332533086,1721288115494,-688.48139481,0.00028219,2]
[332533087,1721288115504,-851.27848749,0.00028219,2]
[332533088,1721288115516,-1046.42319502,0.00028219,2]
[332533089,1721288115526,-988.41842,0.00028219,2]
[332533090,1721288115536,-865.02751458,0.00028219,2]
[332533091,1721288115546,-704.12511289,0.00028219,2]
[332533092,1721288115556,-791.53588936,0.00028219,2]
[332533093,1721288115566,-638.11069344,0.00028219,2]
[332533094,1721288115576,-645.63964206,0.00028219,2]
[332533095,1721288115586,-632.86278122,0.00028219,2]
[332533096,1721288115596,-654.45919206,0.00028219,2]
[332533097,1721288115606,-616.34289889,0.00028219,2]
[332533098,1721288115615,-673.14109724,0.00028219,2]
[332533099,1721288115625,-531.07780684,0.00028219,2]
[332533100,1721288115634,-528.12620483,0.00028219,2]
[332533101,1721288115644,-547.10143946,0.00028219,2]
[332533102,1721288115654,-559.93648115,0.00028219,2]
[332533103,1721288115663,-611.90656424,0.00028219,2]
[332533104,1721288115674,-1173.30282718,0.00028219,2]
[332533105,1721288115687,-753.22709072,0.00028219,2]
[332533106,1721288115697,-709.33204591,0.00028219,2]
[332533107,1721288115706,-571.94329176,0.00028219,2]
[332533108,1721288115717,-679.39353105,0.00028219,2]
[332533109,1721288115727,-393.76869351,0.00028219,2]
[332533110,1721288115737,-771.58309457,0.00028219,2]
[332533111,1721288115747,-1056.13308007,0.00028219,2]
[332533112,1721288115758,-703.51867991,0.00028219,2]
[332533113,1721288115773,-750.93252994,0.00028219,2]
[332533114,1721288115782,-756.1376223,0.00028219,2]
[332533115,1721288115792,-1168.63,0.00028219,2]
[332533116,1721288115802,-1538.79189666,0.00028219,2]
[332533117,1721288115814,-1229.04198656,0.00028219,2]
[332533118,1721288115824,-926.59026223,0.00028219,2]
[332533119,1721288115834,-1335.80914633,0.00028219,2]
[332533120,1721288115844,-984.40097359,0.00028219,2]
[332533121,1721288115856,-1387.74939515,0.00028219,2]
[332533122,1721288115865,-925.55594758,0.00028219,2]
[332533123,1721288115875,-542.66440808,0.00028219,2]
[332533124,1721288115884,-1699.37906063,0.00028219,2]
[332533125,1721288115894,-542.2156651,0.00028219,2]
[332533126,1721288115904,-560.08625851,0.00028219,2]
[332533127,1721288115914,-1355.93038877,0.00028219,2]
[332533128,1721288115925,-506.01281738,0.00028219,2]
[332533129,1721288115934,-628.85368,0.00028219,2]
[332533130,1721288115945,-538.08551295,0.00028219,2]
[332533131,1721288115955,-676.57758578,0.00028219,2]
[332533132,1721288115965,-1065.74384934,0.00028219,2]
[332533133,1721288115975,-1171.63393244,0.00028219,2]
[332533134,1721288115985,-1408.69909541,0.00028219,7]
[332533135,1721288115995,-872.68690785,0.00028219,2]
[332533136,1721288116006,-1349.09114159,0.00028219,2]
[332533137,1721288116021,-838.72868014,0.00028219,2]
[332533138,1721288116031,-503.2431277,0.00028219,2]
[332533139,1721288116041,-802.68,0.00028219,2]
[332533140,1721288116051,-780.95968722,0.00028219,2]
[332533141,1721288116060,-579.56003528,0.00028219,2]
[332533142,1721288116070,-781.53951331,0.00028219,2]
[332533143,1721288116080,-724.25355569,0.00028219,2]
[332533144,1721288116090,-568.86406136,0.00028219,2]
[332533145,1721288116100,-771.74017519,0.00028219,2]
[332533146,1721288116111,-1354.08569053,0.00028219,2]
[332533147,1721288116120,-1387.87076715,0.00028219,2]
[332533148,1721288116130,-1287.42419646,0.00028219,2]
[332533149,1721288116140,-554.01131597,0.00028219,2]
[332533150,1721288116149,-234.66349721,0.00028219,2]
[332533151,1721288116159,-911.73843298,0.00028219,2]
[332533152,1721288116169,-972.48428663,0.00028219,2]
[332533153,1721288116179,-683.16111218,0.00028219,2]
[332533154,1721288116189,-1109.85034713,0.00028219,2]
[332533155,1721288116199,-819.6159425,0.00028219,2]
[332533156,1721288116209,-836.43256623,0.00028219,2]
[332533157,1721288116219,-544.38101189,0.00028219,2]
[332533158,1721288116230,-744.8470867,0.00028219,2]
[332533159,1721288116239,-659.89595965,0.00028219,2]
[332533160,1721288116249,-1074.53319584,0.00028219,2]
[332533161,1721288116259,-918.19942711,0.00028219,2]
[332533162,1721288116271,-637.53661091,0.00028219,2]
[332533163,1721288116280,-941.5227952,0.00028219,2]
[332533164,1721288116290,-1715.12169765,0.00028219,2]
[332533165,1721288116299,-808.34046813,0.00028219,2]
[332533166,1721288116310,-544.07011676,0.00028219,2]
[332533167,1721288116319,-849.01560359,0.00028219,2]
[332533168,1721288116328,-702.25965766,0.00028219,2]
[332533169,1721288116338,-833.74070166,0.00028219,2]
[332533170,1721288116347,-747.18851604,0.00028219,2]
[332533171,1721288116356,-694.2742493,0.00028219,2]
[332533172,1721288116366,-1394.17390357,0.00028219,2]
[332533173,1721288116375,-923.31283831,0.00028219,2]
[332533174,1721288116384,-864.64205311,0.00028219,2]
[332533175,1721288116394,-874.83088203,0.00028219,2]
[332533176,1721288116404,-572.28226328,0.00028219,2]
[332533177,1721288116413,-768.58149765,0.00028219,2]
[332533178,1721288116423,-920.03381376,0.00028219,2]
[332533179,1721288116433,-567.07530951,0.00028219,2]
[332533180,1721288116443,-750.99534282,0.00028219,2]
[332533181,1721288116453,-665.03476385,0.00028219,2]
[332533182,1721288116463,-1439.57170921,0.00028219,2]
[332533183,1721288116473,-820.29065358,0.00028219,2]
[332533184,1721288116484,-660.03325686,0.00028219,2]
[332533185,1721288116494,-675.46698735,0.00028219,2]
[332533186,1721288116504,-1239.38316355,0.00028219,2]
[332533187,1721288116513,-587.44327752,0.00028219,2]
[332533188,1721288116526,-1037.81604385,0.00028219,2]
[332533189,1721288116535,-1312.98190501,0.00028219,2]
[332533190,1721288116545,-759.51595362,0.00028219,2]
[332533191,1721288116699,-589.7259616,0.00028219,2]
[332533192,1721288116711,-589.80962355,0.00028219,2]
[332533193,1721288116722,-1508.33787855,0.00028219,2]
[332533194,1721288116731,-519.47651105,0.00028219,2]
[332533195,1721288116743,-465.66120896,0.00028219,2]
[332533196,1721288116753,-1570.39107131,0.00028219,2]
[332533197,1721288116763,-684.61760346,0.00028219,2]
[332533198,1721288116775,-1825.46854777,0.00028219,2]
[332533199,1721288116785,-778.42147971,0.00028219,2]
[332533200,1721288116794,-647.59721313,0.00028219,2]
[332533201,1721288116804,-1501.16935408,0.00028219,2]
[332533202,1721288116814,-649.95184355,0.00028219,2]
[332533203,1721288116824,-698.33311125,0.00028219,2]
[332533204,1721288116833,-838.21703614,0.00028219,2]
[332533205,1721288116843,-832.68555158,0.00028219,2]
[332533206,1721288116853,-635.86566254,0.00028219,2]
[332533207,1721288116863,-1002.76787942,0.00028219,2]
[332533208,1721288116873,-1265.04679037,0.00028219,2]
[332533209,1721288116882,-558.15616773,0.00028219,2]
[332533210,1721288116893,-667.8884499,0.00028219,2]
[332533211,1721288116902,-828.80824368,0.00028219,2]
[332533212,1721288116912,-825.30326695,0.00028219,2]
[332533213,1721288116921,-935.36022835,0.00028219,2]
[332533214,1721288116932,-572.29,0.00028219,2]
[332533215,1721288116942,-801.83750714,0.00028219,2]
[332533216,1721288116952,-829.25608001,0.00028219,2]
[332533217,1721288116962,-1500.49957522,0.00028219,2]
[332533218,1721288116973,-533.28231294,0.00028219,2]
[332533219,1721288116983,-614.79554465,0.00028219,2]
[332533220,1721288116992,-839.67676273,0.00028219,2]
[332533221,1721288117002,-1099.2232365,0.00028219,2]
[332533222,1721288117013,-993.42583518,0.00028219,2]
[332533223,1721288117025,-2191.02688792,0.00028219,2]
[332533224,1721288117035,-770.07208068,0.00028219,2]
[332533225,1721288117045,-1387.79633284,0.00028219,2]
[332533226,1721288117055,-860.55111052,0.00028219,2]
[332533227,1721288117064,-916.96272276,0.00028219,2]
[332533228,1721288117074,-234.48653856,0.00028219,2]
[332533229,1721288117083,-621.26499391,0.00028219,2]
[332533230,1721288117093,-2607.2394,0.00028219,2]
[332533231,1721288117102,-934.95902776,0.00028219,2]
[332533232,1721288117113,-1186.01802767,0.00028219,2]
[332533233,1721288117123,-634.43121178,0.00028219,2]
[332533234,1721288117133,-714.70582808,0.00028219,2]
[332533235,1721288117142,-706.26825785,0.00028219,2]
[332533236,1721288117152,-992.43272875,0.00028219,2]
[332533237,1721288117161,-719.13679393,0.00028219,2]
[332533238,1721288117170,-879.83021169,0.00028219,2]
[332533239,1721288117180,-962.82690694,0.00028219,2]
[332533240,1721288117189,-4194.32887927,0.00028219,2]
[332533241,1721288117199,-796.27919706,0.00028219,2]
[332533242,1721288117209,-1343.8694117,0.00028219,2]
[332533243,1721288117218,-845.62735772,0.00028219,2]
[332533244,1721288117227,-608.02870296,0.00028219,2]
[332533245,1721288117237,-884.87178367,0.00028219,2]
[332533246,1721288117246,-563.83834182,0.00028219,2]
[332533247,1721288117255,-664.23727437,0.00028219,2]
[332533248,1721288117265,-619.67568647,0.00028219,2]
[332533249,1721288117275,-1023.53318951,0.00028219,2]
[332533250,1721288117284,-4286.61859063,0.00028219,2]
[332533251,1721288117294,-759.2893816,0.00028219,2]
[332533252,1721288117303,-1303.05715147,0.00028219,2]
[332533253,1721288117312,-664.98169837,0.00028219,2]
[332533254,1721288117322,-800.14720708,0.00028219,2]
[332533255,1721288117331,-779.17667123,0.00028219,2]
[332533256,1721288117341,-705.02230043,0.00028219,2]
[332533257,1721288117350,-699.27393057,0.00028219,2]
[332533258,1721288117359,-712.46569383,0.00028219,2]
[332533259,1721288117368,-615.27849101,0.00028219,2]
[332533260,1721288117378,-640.60376129,0.00028219,2]
[332533261,1721288117387,-841.07848811,0.00028219,2]
[332533262,1721288117396,-843.04492008,0.00028219,2]
[332533263,1721288117406,-1213.97990954,0.00028219,2]
[332533264,1721288117415,-515.75547195,0.00028219,2]
[332533265,1721288117424,-964.95775607,0.00028219,2]
[332533266,1721288117434,-592.70219458,0.00028219,2]
[332533267,1721288117444,-6376.13087085,0.00028219,2]
[332533268,1721288117453,-1037.47447729,0.00028219,2]
[332533269,1721288117463,-1379.22379222,0.00028219,2]
[332533270,1721288117472,-559.31067297,0.00028219,2]
[332533271,1721288117483,-1444.52850398,0.00028219,2]
[332533272,1721288117492,-1777.61501358,0.00028219,2]
[332533273,1721288117502,-1147.59,0.00028219,2]
[332533274,1721288117511,-1083.93506489,0.00028219,2]
[332533275,1721288117522,-816.16255586,0.00028219,2]
[332533276,1721288117532,-1394.23654454,0.00028219,2]
[332533277,1721288117542,-1149.52405845,0.00028219,2]
[332533278,1721288117551,-589.11150464,0.00028219,2]
[332533279,1721288117561,-7885.16883667,0.00028219,2]
[332533280,1721288117571,-1142.67122002,0.00028219,2]
[332533281,1721288117580,-751.4283313,0.00028219,2]
[332533282,1721288117590,-518.16712266,0.00028219,2]
[332533283,1721288117600,-2351.04026121,0.00028219,2]
[332533284,1721288117609,-1047.55972406,0.00028219,2]
[332533285,1721288117620,-9262.9892368,0.00028219,2]
[332533286,1721288117629,-576.3264315,0.00028219,2]
[332533287,1721288117639,-817.89,0.00028219,2]
[332533288,1721288117648,-567.88,0.00028219,2]
[332533289,1721288117658,-943.26334067,0.00028219,2]
[332533290,1721288117669,-559.37000112,0.00028219,2]
[332533291,1721288117683,-671.50282543,0.00028219,2]
[332533292,1721288117693,-595.90697104,0.00028219,2]
[332533293,1721288117702,-1700.40087534,0.00028219,2]
[332533294,1721288117711,-897.13384964,0.00028219,2]
[332533295,1721288117722,-709.25984194,0.00028219,2]
[332533296,1721288117731,-812.99555509,0.00028219,2]
[332533297,1721288117740,-714.82831125,0.00028219,2]
[332533298,1721288117751,-763.59792122,0.00028219,2]
[332533299,1721288117760,-919.89652232,0.00028219,2]
[332533300,1721288117771,-1583.60332379,0.00028219,2]
[332533301,1721288117780,-634.14811449,0.00028219,2]
[332533302,1721288117789,-916.06594301,0.00028219,2]
[332533303,1721288117798,-1450.74315006,0.00028219,2]
[332533304,1721288117807,-948.85738339,0.00028219,2]
[332533305,1721288117816,-1051.73637798,0.00028219,2]
[332533306,1721288117825,-2003.91750162,0.00028219,2]
[332533307,1721288117834,-601.12038925,0.00028219,2]
[332533308,1721288117844,-796.88361089,0.00028219,2]
[332533309,1721288117853,-1013.94283748,0.00028219,2]
[332533310,1721288117862,-515.7600752,0.00028219,2]
[332533311,1721288117871,-544.49567462,0.00028219,2]
[332533312,1721288117881,-1299.33895797,0.00028219,2]
[332533313,1721288117890,-503.51131987,0.00028219,2]
[332533314,1721288117900,-708.88375382,0.00028219,2]
[332533315,1721288117909,-1547.54226651,0.00028219,2]
[332533316,1721288117919,-612.74923423,0.00028219,2]
[332533317,1721288117929,-957.73562343,0.00028219,2]
[332533318,1721288117939,-999.04720632,0.00028219,2]
[332533319,1721288117949,-677.56672184,0.00028219,2]
[332533320,1721288117959,-549.88111938,0.00028219,2]
[332533321,1721288117968,-798.65413677,0.00028219,2]
[332533322,1721288117978,-695.20501687,0.00028219,2]
[332533323,1721288117988,-518.25531673,0.00028219,2]
[332533324,1721288117997,-813.43688638,0.00028219,2]
[332533325,1721288118007,-1656.95101464,0.00028219,2]
[332533326,1721288118017,-945.33391566,0.00028219,2]
[332533327,1721288118026,-947.17702586,0.00028219,2]
[332533328,1721288118036,-706.46925421,0.00028219,2]
[332533329,1721288118046,-539.99111906,0.00028219,2]
[332533330,1721288118055,-1135.77361987,0.00028219,2]
[332533331,1721288118065,-673.66438078,0.00028219,2]
[332533332,1721288118074,-3129.19038459,0.00028219,2]
[332533333,1721288118084,-557.49,0.00028219,2]
[332533334,1721288118094,-669.21015351,0.00028219,2]
[332533335,1721288118103,-3223.37288237,0.00028219,2]
[332533336,1721288118113,-842.65206874,0.00028219,2]
[332533337,1721288118122,-836.87304764,0.00028219,2]
[332533338,1721288118131,-542.6923782,0.00028219,2]
[332533339,1721288118141,-884.25412973,0.00028219,2]
[332533340,1721288118151,-1416.63204799,0.00028219,2]
[332533341,1721288118160,-525.8550681,0.00028219,2]
[332533342,1721288118169,-808.91167236,0.00028219,2]
[332533343,1721288118179,-2205.11679787,0.00028219,2]
[332533344,1721288118190,-813.25586845,0.00028219,2]
[332533345,1721288118200,-888.05979581,0.00028219,2]
[332533346,1721288118210,-617.43023038,0.00028219,2]
[332533347,1721288118220,-503.15,0.00028219,2]
[332533348,1721288118229,-551.02060511,0.00028219,2]
[332533349,1721288118239,-556.64901639,0.00028219,2]
[332533350,1721288118248,-1541.71559522,0.00028219,2]
[332533351,1721288118258,-1258.15717984,0.00028219,2]
[332533352,1721288118268,-923.543914,0.00028219,2]
[332533353,1721288118277,-1497.9647688,0.00028219,2]
[332533354,1721288118286,-773.95656857,0.00028219,2]
[332533355,1721288118296,-698.31804923,0.00028219,2]
[332533356,1721288118305,-1777.77798416,0.00028219,2]
[332533357,1721288118315,-1751.88122163,0.00028219,2]
[332533358,1721288118324,-748.81485687,0.00028219,2]
[332533359,1721288118333,-1440.86507774,0.00028219,2]
[332533360,1721288118343,-1459.38627283,0.00028219,2]
[332533361,1721288118353,-834.7668892,0.00028219,2]
[332533362,1721288118362,-575.00874717,0.00028219,2]
[332533363,1721288118371,-967.56162102,0.00028219,2]
[332533364,1721288118381,-600.44564229,0.00028219,2]
[332533365,1721288118391,-945.67340231,0.00028219,2]
[332533366,1721288118400,-6789.66471049,0.00028219,2]
[332533367,1721288118409,-702.74382356,0.00028219,2]
[332533368,1721288118419,-1649.13349419,0.00028219,2]
[332533369,1721288118429,-846.94781467,0.00028219,2]
[332533370,1721288118439,-1351.2439703,0.00028219,2]
[332533371,1721288118448,-3838.67950297,0.00028219,2]
[332533372,1721288118458,-727.87819628,0.00028219,2]
[332533373,1721288118467,-592.95158609,0.00028219,2]
[332533374,1721288118476,-1314.84922543,0.00028219,2]
[332533375,1721288118486,-660.33809578,0.00028219,2]
[332533376,1721288118496,-690.82060096,0.00028219,2]
[332533377,1721288118505,-1225.36202532,0.00028219,2]
[332533378,1721288118514,-758.35669679,0.00028219,2]
[332533379,1721288118525,-1099.89128206,0.00028219,2]
[332533380,1721288118534,-815.99696583,0.00028219,2]
[332533381,1721288118544,-1445.62586536,0.00028219,2]
[332533382,1721288118553,-1211.47205522,0.00028219,2]
[332533383,1721288118563,-765.05840515,0.00028219,2]
[332533384,1721288118573,-1017.79128692,0.00028219,2]
[332533385,1721288118582,-819.96175656,0.00028219,2]
[332533386,1721288118591,-508.17433815,0.00028219,2]
[332533387,1721288118600,-1121.99124992,0.00028219,2]
[332533388,1721288118610,-4510.67699752,0.00028219,2]
[332533389,1721288118620,-843.71505811,0.00028219,2]
[332533390,1721288118629,-548.74776505,0.00028219,2]
[332533391,1721288118638,-732.7249613,0.00028219,2]
[332533392,1721288118648,-727.62398163,0.00028219,2]
[332533393,1721288118657,-699.78491041,0.00028219,2]
[332533394,1721288118668,-781.02129412,0.00028219,2]
[332533395,1721288118680,-616.02736442,0.00028219,2]
[332533396,1721288118690,-2219.1985086,0.00028219,2]
[332533397,1721288118699,-661.62014124,0.00028219,2]
[332533398,1721288118708,-2008.82909219,0.00028219,2]
[332533399,1721288118718,-707.53448597,0.00028219,2]
[332533400,1721288118728,-776.84960486,0.00028219,2]
[332533401,1721288118737,-813.6628161,0.00028219,2]
[332533402,1721288118746,-2197.51050641,0.00028219,2]
[332533403,1721288118756,-985.26011449,0.00028219,2]
[332533404,1721288118766,-1222.71224289,0.00028219,2]
[332533405,1721288118780,-686.00215921,0.00028219,2]
[332533406,1721288118789,-886.05662728,0.00028219,2]
[332533407,1721288118798,-703.52670659,0.00028219,2]
[332533408,1721288118809,-919.81321437,0.00028219,2]
[332533409,1721288118819,-2956.11428973,0.00028219,2]
[332533410,1721288118828,-700.18172296,0.00028219,2]
[332533411,1721288118837,-758.84960904,0.00028219,2]
[332533412,1721288118847,-1024.18462953,0.00028219,2]
[332533413,1721288118856,-6067.17,0.00028219,2]
[332533414,1721288118865,-589.06350344,0.00028219,2]
[332533415,1721288118874,-1159.93892088,0.00028219,2]
[332533416,1721288118884,-893.46216802,0.00028219,2]
[332533417,1721288118894,-799.44740589,0.00028219,2]
[332533418,1721288118904,-153.0,0.00028222,2]
[332533419,1721288118913,-153.0,0.00028241,2]
[332533420,1721288118924,-150.0,0.00028263,2]
[332533421,1721288118934,-757.59254093,0.00028297,120]
[332533422,1721288118944,-524.53,0.00028306,2]
[332533423,1721288118954,-180.43,0.00028493,2]
[332533424,1721288118964,-151.0,0.000286,2]
[332533425,1721288118975,-250.49088,0.000286,2]
[332533426,1721288118985,-1169.35,0.00028767,17]
[332533427,1721288118995,-150.0,0.00028839,2]
[332533428,1721288119006,-979.61,0.00028895,2]
[332533429,1721288119016,-2000.0,0.000289,2]
[332533430,1721288119027,-54334.40806443,0.00029,2]
[332533431,1721288119037,-5000.0,0.00029,2]
[332533432,1721288119047,-4589.99364819,0.00029,2]
[332533433,1721288119057,-150.0,0.00029,2]
[332533434,1721288119067,-917.86747834,0.00029,120]
[332533435,1721288119077,-3000.0,0.00029,2]
[332533436,1721288119086,-302.0,0.0002908,4]
[332533437,1721288119096,-1013.98,0.000292,2]
[332533438,1721288119106,-634.27413971,0.00029207,5]
[332533439,1721288119116,-1200.0,0.00029325,2]
[332533440,1721288119125,-10572.74645592,0.000294,2]
[332533441,1721288119135,-150.0,0.00029416,2]
[332533442,1721288119145,-604.0,0.00029569,7]
[332533443,1721288119154,-150.0,0.00029594,7]
[332533444,1721288119164,-304.34,0.0002968,2]
[332533445,1721288119175,-200.0,0.000297,30]
[332533446,1721288119185,-979.61,0.00029717,2]
[332533447,1721288119194,-252.0,0.0002972,30]
[332533448,1721288119204,-159.01,0.00029746,2]
[332533449,1721288119214,-3883.0,0.000298,2]
[332533450,1721288119224,-588.65518,0.000298,30]
[332533451,1721288119233,-73324.46191752,0.000299,2]
[332533452,1721288119243,-1518.099999,0.000299,2]
[332533453,1721288119254,-1883.56665,0.000299,10]
[332533454,1721288119264,-1000.0,0.0002992,10]
[332533455,1721288119276,-1000.0,0.0002994,10]
[332533456,1721288119287,-1000.0,0.0002996,10]
[332533457,1721288119298,-1000.0,0.0002998,10]
[332533458,1721288119308,-224.10541683,0.0002999,2]
[332533459,1721288119318,-150.0,0.00029993,2]
[332533460,1721288119329,-1097.94528582,0.0003,4]
[332533461,1721288119339,-199.7396935,0.0003,10]
[332533462,1721288119349,-155.8383369,0.0003,4]
[332533463,1721288119358,-201.85808065,0.0003,4]
[332533464,1721288119369,-2276.6,0.0003,8]
[332533465,1721288119378,-160.0,0.0003,2]
[332533466,1721288119387,-9553.79122199,0.0003,7]
[332533467,1721288119397,-16910.95088072,0.0003,7]
[332533468,1721288119407,-10604.36475139,0.0003,2]
[332533469,1721288119416,-15246.26175294,0.0003,2]
[332533470,1721288119426,-3909.29811095,0.0003,2]
[332533471,1721288119435,-5868.74072441,0.0003,7]
[332533472,1721288119445,-1715.33525365,0.0003,2]
[332533473,1721288119454,-502.64,0.0003,10]
[332533474,1721288119464,-2389.28,0.0003,8]
[332533475,1721288119475,-290000.0,0.0003,3]
[332533476,1721288119486,-10000.0,0.0003,15]
[332533477,1721288119496,-415.09654327,0.0003,3]
[332533478,1721288119506,-5000.0,0.0003,7]